fUSD/lending_fUSD_20251006
["ID","MTS","AMOUNT","RATE_DAILY","PERIOD"]
[389668198,1759780251344,-264.102382,0.00029658,30]
[389668199,1759780251353,-264.102382,0.00029658,30]
[389668200,1759780251362,-264.102382,0.00029658,30]
[389668201,1759780251371,-151.0,0.00029658,30]
[389668202,1759780251379,-151.0,0.00029658,30]
[389668203,1759780251388,-151.0,0.00029658,30]
[389668204,1759780251397,-151.0,0.00029658,30]
[389668205,1759780251407,-151.0,0.00029658,30]
[389668206,1759780251416,-151.0,0.00029658,30]
[389668207,1759780251425,-151.0,0.00029658,30]
[389668208,1759780251434,-151.0,0.00029658,30]
[389668209,1759780251442,-151.0,0.00029658,30]
[389668210,1759780251451,-151.0,0.00029658,30]
[389668211,1759780251460,-151.0,0.00029658,30]
[389668212,1759780251469,-184.395217,0.00029658,30]
[389668213,1759780251478,-151.0,0.00029658,30]
[389668214,1759780251488,-184.395217,0.00029658,30]
[389668215,1759780251497,-151.0,0.00029658,30]
[389668216,1759780251506,-151.0,0.00029658,30]
[389668217,1759780251515,-184.395217,0.00029658,30]
[389668218,1759780251524,-184.395217,0.00029658,30]
[389668219,1759780251533,-151.0,0.00029658,15]
[389668220,1759780251542,-151.0,0.00029658,15]
[389668221,1759780251551,-151.0,0.00029658,15]
[389668222,1759780251560,-151.0,0.00029658,30]
[389668223,1759780251569,-151.0,0.00029658,30]
[389668224,1759780251577,-151.0,0.00029658,30]
[389668225,1759780251585,-151.0,0.00029658,30]
[389668226,1759780251594,-151.0,0.00029658,30]
[389668227,1759780251603,-151.0,0.00029658,30]
[389668228,1759780251613,-151.0,0.00029658,30]
[389668229,1759780251621,-151.0,0.00029658,30]
[389668230,1759780251630,-151.0,0.00029658,30]
[389668231,1759780251640,-151.0,0.00029658,30]
[389668232,1759780251649,-151.0,0.00029658,30]
[389668233,1759780251657,-151.0,0.00029658,30]
[389668234,1759780251666,-151.0,0.00029658,30]
[389668235,1759780251675,-68465.4033041,0.00029658,3]
[389668236,1759780251684,-227370.59349,0.00029658,3]
[389668237,1759780251693,-467.02238777,0.00029666,7]
[389668238,1759780251703,-2101.96377695,0.00029666,7]
[389668239,1759780251711,-215.96957319,0.00029667,2]
[389668240,1759780251720,-37033.65,0.00029667,7]
[389668241,1759780251730,-37033.65,0.00029667,7]
[389668242,1759780251739,-37033.65,0.00029667,7]
[389668243,1759780251748,-37033.65,0.00029667,7]
[389668244,1759780251757,-37033.65,0.00029667,7]
[389668245,1759780251766,-37033.65,0.00029667,7]
[389668246,1759780251774,-37033.65,0.00029667,7]
[389668247,1759780251783,-37033.65,0.00029667,7]
[389668248,1759780251792,-37033.65,0.00029667,7]
[389668249,1759780251801,-37033.65,0.00029667,7]
[389668250,1759780251809,-37033.65,0.00029667,7]
[389668251,1759780251823,-37033.65,0.00029667,7]
[389668252,1759780251832,-37033.65,0.00029667,7]
[389668253,1759780251841,-37033.65,0.00029667,7]
[389668254,1759780251849,-37033.65,0.00029667,7]
[389668255,1759780251860,-16147.64150539,0.00029667,7]
[389668256,1759780251874,-20886.00849461,0.00029667,7]
[389668257,1759780251883,-37033.83857432,0.00029667,7]
[389668258,1759780251894,-151.0,0.00029667,30]
[389668259,1759780251903,-151.0,0.00029667,30]
[389668260,1759780251912,-151.0,0.00029667,30]
[389668261,1759780251920,-151.0,0.00029667,30]
[389668262,1759780251929,-3631.06,0.00029667,7]
[389668263,1759780251938,-3631.06,0.00029667,7]
[389668264,1759780251946,-3631.06,0.00029667,7]
[389668265,1759780251955,-3631.06,0.00029667,7]
[389668266,1759780251964,-3631.06,0.00029667,7]
[389668267,1759780251973,-3631.06,0.00029667,7]
[389668268,1759780251984,-3631.06,0.00029667,7]
[389668269,1759780251993,-3631.06,0.00029667,7]
[389668270,1759780252003,-3631.06,0.00029667,7]
[389668271,1759780252012,-3631.06,0.00029667,7]
[389668272,1759780252023,-3631.06,0.00029667,7]
[389668273,1759780252033,-3631.06,0.00029667,7]
[389668274,1759780252042,-151.0,0.00029667,30]
[389668275,1759780252051,-3631.06,0.00029667,7]
[389668276,1759780252060,-3631.06,0.00029667,7]
[389668277,1759780252069,-3631.06,0.00029667,7]
[389668278,1759780252078,-3631.06,0.00029667,7]
[389668279,1759780252088,-3631.14488707,0.00029667,7]
[389668280,1759780252096,-184.395217,0.00029667,30]
[389668281,1759780252106,-152.712402,0.00029667,30]
[389668282,1759780252115,-1938.73,0.00029667,7]
[389668283,1759780252124,-1938.73,0.00029667,7]
[389668284,1759780252134,-1938.73,0.00029667,7]
[389668285,1759780252143,-184.395217,0.00029667,30]
[389668286,1759780252156,-1938.73,0.00029667,7]
[389668287,1759780252165,-151.0,0.00029667,30]
[389668288,1759780252175,-1938.73,0.00029667,7]
[389668289,1759780252184,-151.0,0.00029667,30]
[389668290,1759780252193,-1938.73,0.00029667,7]
[389668291,1759780252204,-1938.73,0.00029667,7]
[389668292,1759780252213,-1938.73,0.00029667,7]
[389668293,1759780252222,-1938.73,0.00029667,7]
[389668294,1759780252231,-184.395217,0.00029667,30]
[389668295,1759780252240,-1938.73,0.00029667,7]
[389668296,1759780252250,-1938.73,0.00029667,7]
[389668297,1759780252258,-1938.73,0.00029667,7]
[389668298,1759780252266,-1938.73,0.00029667,7]
[389668299,1759780252275,-1938.73,0.00029667,7]
[389668300,1759780252284,-184.395217,0.00029667,30]
[389668301,1759780252293,-1938.73,0.00029667,7]
[389668302,1759780252303,-1938.73,0.00029667,7]
[389668303,1759780252312,-1938.94942504,0.00029667,7]
[389668304,1759780252321,-151.0,0.00029667,15]
[389668305,1759780252331,-151.0,0.00029667,15]
[389668306,1759780252340,-235.209633,0.00029667,15]
[389668307,1759780252348,-151.0,0.00029667,30]
[389668308,1759780252357,-151.0,0.00029667,30]
[389668309,1759780252367,-151.0,0.00029667,30]
[389668310,1759780252376,-243.517921,0.00029667,30]
[389668311,1759780252385,-151.0,0.00029667,30]
[389668312,1759780252393,-151.0,0.00029667,30]
[389668313,1759780252402,-151.0,0.00029667,30]
[389668314,1759780252412,-151.0,0.00029667,30]
[389668315,1759780252421,-151.0,0.00029667,30]
[389668316,1759780252429,-151.0,0.00029667,30]
[389668317,1759780252438,-151.0,0.00029667,30]
[389668318,1759780252447,-151.0,0.00029667,30]
[389668319,1759780252456,-8679.60501542,0.00029667,7]
[389668320,1759780252465,-500.0,0.00029668,7]
[389668321,1759780252474,-151.0,0.00029668,30]
[389668322,1759780252483,-151.0,0.00029668,30]
[389668323,1759780252492,-151.0,0.00029668,30]
[389668324,1759780252501,-151.0,0.00029668,30]
[389668325,1759780252510,-151.0,0.00029668,30]
[389668326,1759780252519,-151.0,0.00029668,30]
[389668327,1759780252528,-151.0,0.00029668,14]
[389668328,1759780252537,-151.0,0.00029668,30]
[389668329,1759780252546,-151.0,0.00029668,30]
[389668330,1759780252555,-151.0,0.00029668,14]
[389668331,1759780252564,-151.0,0.00029668,30]
[389668332,1759780252573,-151.0,0.00029668,30]
[389668333,1759780252582,-151.0,0.00029668,30]
[389668334,1759780252591,-151.0,0.00029668,30]
[389668335,1759780252600,-151.0,0.00029668,30]
[389668336,1759780252609,-151.0,0.00029668,30]
[389668337,1759780252618,-151.0,0.00029668,30]
[389668338,1759780252627,-151.0,0.00029668,30]
[389668339,1759780252635,-151.0,0.00029668,30]
[389668340,1759780252643,-905.865682,0.00029668,30]
[389668341,1759780252651,-151.0,0.00029668,30]
[389668342,1759780252660,-905.865682,0.00029668,30]
[389668343,1759780252669,-151.0,0.00029668,30]
[389668344,1759780252678,-905.865682,0.00029668,30]
[389668345,1759780252687,-151.0,0.00029668,30]
[389668346,1759780252697,-905.865682,0.00029668,30]
[389668347,1759780252706,-151.509688,0.00029668,30]
[389668348,1759780252715,-151.0,0.00029668,30]
[389668349,1759780252724,-151.0,0.00029668,30]
[389668350,1759780252732,-151.0,0.00029668,30]
[389668351,1759780252742,-20963.5,0.00029668,7]
[389668352,1759780252751,-151.0,0.00029668,30]
[389668353,1759780252759,-151.0,0.00029668,30]
[389668354,1759780252768,-151.0,0.00029668,30]
[389668355,1759780252777,-191.636499,0.00029668,30]
[389668356,1759780252786,-151.0,0.00029668,30]
[389668357,1759780252796,-151.0,0.00029668,30]
[389668358,1759780252805,-191.636499,0.00029668,30]
[389668359,1759780252817,-151.0,0.00029668,30]
[389668360,1759780252827,-191.636499,0.00029668,30]
[389668361,1759780252836,-191.636499,0.00029668,30]
[389668362,1759780252845,-151.0,0.00029668,30]
[389668363,1759780252855,-151.0,0.00029668,30]
[389668364,1759780252864,-151.0,0.00029668,30]
[389668365,1759780252873,-151.0,0.00029668,30]
[389668366,1759780252882,-151.0,0.00029668,30]
[389668367,1759780252893,-151.0,0.00029668,30]
[389668368,1759780252903,-7977.48,0.00029668,7]
[389668369,1759780252912,-27544.47454216,0.00029669,7]
[389668370,1759780252921,-2942.74928772,0.0002967,7]
[389668371,1759780252930,-194.0,0.0002967,2]
[389668372,1759780252939,-756.70695971,0.00029671,7]
[389668373,1759780252948,-20252.4117026,0.00029672,7]
[389668374,1759780252957,-42323.988688,0.00029672,7]
[389668375,1759780252966,-168.08880167,0.00029673,7]
[389668376,1759780252975,-500.0,0.00029673,7]
[389668377,1759780252984,-500.0,0.00029673,7]
[389668378,1759780252994,-500.0,0.00029673,7]
[389668379,1759780253003,-339.66342043,0.00029673,7]
[389668380,1759780253012,-500.0,0.00029673,7]
[389668381,1759780253022,-500.0,0.00029673,7]
[389668382,1759780253031,-500.0,0.00029673,7]
[389668383,1759780253045,-500.0,0.00029673,7]
[389668384,1759780253055,-1000.0,0.00029673,30]
[389668385,1759780253065,-896.12,0.00029673,7]
[389668386,1759780253075,-500.0,0.00029673,7]
[389668387,1759780253084,-500.0,0.00029673,7]
[389668388,1759780253094,-505.60072778,0.00029673,7]
[389668389,1759780253103,-500.0,0.00029673,7]
[389668390,1759780253114,-3488.98,0.00029673,7]
[389668391,1759780253123,-3970.32627373,0.00029675,7]
[389668392,1759780253133,-4657.23023247,0.00029678,7]
[389668393,1759780253143,-5291.73065257,0.00029679,2]
[389668394,1759780253152,-157.789838,0.00029679,30]
[389668395,1759780253162,-157.789838,0.00029679,30]
[389668396,1759780253172,-157.789838,0.00029679,30]
[389668397,1759780253181,-157.789838,0.00029679,30]
[389668398,1759780253191,-361.684434,0.00029679,30]
[389668399,1759780253200,-361.684434,0.00029679,30]
[389668400,1759780253210,-361.684434,0.00029679,30]
[389668401,1759780253220,-151.0,0.00029679,30]
[389668402,1759780253229,-151.0,0.00029679,30]
[389668403,1759780253239,-361.684434,0.00029679,30]
[389668404,1759780253248,-151.0,0.00029679,30]
[389668405,1759780253258,-151.0,0.00029679,30]
[389668406,1759780253267,-151.0,0.00029679,30]
[389668407,1759780253277,-372.388706,0.00029679,30]
[389668408,1759780253287,-372.388706,0.00029679,30]
[389668409,1759780253297,-372.388706,0.00029679,30]
[389668410,1759780253307,-372.388706,0.00029679,30]
[389668411,1759780253316,-241.644586,0.00029679,30]
[389668412,1759780253326,-241.644586,0.00029679,30]
[389668413,1759780253336,-241.644586,0.00029679,30]
[389668414,1759780253346,-241.644586,0.00029679,30]
[389668415,1759780253355,-187.28884,0.00029679,30]
[389668416,1759780253364,-187.28884,0.00029679,30]
[389668417,1759780253373,-187.28884,0.00029679,30]
[389668418,1759780253383,-187.28884,0.00029679,30]
[389668419,1759780253391,-151.0,0.00029679,30]
[389668420,1759780253401,-151.0,0.00029679,30]
[389668421,1759780253411,-151.0,0.00029679,30]
[389668422,1759780253420,-20252.41170261,0.00029681,7]
[389668423,1759780253430,-668.71692078,0.00029681,7]
[389668424,1759780253439,-3035.64552121,0.00029681,7]
[389668425,1759780253448,-158.88013132,0.00029683,2]
[389668426,1759780253457,-27544.47454216,0.00029683,7]
[389668427,1759780253466,-316.90336929,0.00029683,2]
[389668428,1759780253475,-151.0,0.00029683,30]
[389668429,1759780253485,-153.835409,0.00029683,30]
[389668430,1759780253494,-151.0,0.00029683,30]
[389668431,1759780253503,-151.0,0.00029683,30]
[389668432,1759780253513,-151.0,0.00029683,30]
[389668433,1759780253522,-151.0,0.00029683,30]
[389668434,1759780253532,-257.804648,0.00029683,30]
[389668435,1759780253541,-151.0,0.00029683,30]
[389668436,1759780253551,-151.0,0.00029683,30]
[389668437,1759780253560,-151.0,0.00029683,30]
[389668438,1759780253569,-151.0,0.00029683,30]
[389668439,1759780253579,-274.815258,0.00029683,30]
[389668440,1759780253589,-151.0,0.00029683,30]
[389668441,1759780253598,-207.4,0.00029683,7]
[389668442,1759780253607,-20963.5,0.00029683,7]
[389668443,1759780253617,-7977.48,0.00029683,7]
[389668444,1759780253626,-1186.5753389,0.00029684,15]
[389668445,1759780253636,-2315.13,0.00029684,7]
[389668446,1759780253646,-553.19,0.00029684,7]
[389668447,1759780253655,-500.0,0.00029684,7]
[389668448,1759780253664,-500.0,0.00029684,7]
[389668449,1759780253673,-500.0,0.00029684,7]
[389668450,1759780253683,-500.0,0.00029684,7]
[389668451,1759780253693,-500.0,0.00029684,7]
[389668452,1759780253702,-714.34,0.00029684,7]
[389668453,1759780253711,-500.0,0.00029684,7]
[389668454,1759780253722,-500.0,0.00029684,7]
[389668455,1759780253731,-500.0,0.00029684,7]
[389668456,1759780253741,-500.0,0.00029684,7]
[389668457,1759780253750,-500.0,0.00029684,7]
[389668458,1759780253759,-687.7,0.00029684,7]
[389668459,1759780253769,-4657.23023247,0.00029686,7]
[389668460,1759780253779,-18569.51062241,0.00029689,7]
[389668461,1759780253789,-840.64029818,0.00029692,7]
[389668462,1759780253798,-157.789838,0.00029692,30]
[389668463,1759780253807,-157.789838,0.00029692,30]
[389668464,1759780253820,-157.789838,0.00029692,30]
[389668465,1759780253830,-157.789838,0.00029692,30]
[389668466,1759780253839,-361.684434,0.00029692,30]
[389668467,1759780253848,-361.684434,0.00029692,30]
[389668468,1759780253858,-361.684434,0.00029692,30]
[389668469,1759780253867,-151.0,0.00029692,30]
[389668470,1759780253876,-151.0,0.00029692,30]
[389668471,1759780253886,-361.684434,0.00029692,30]
[389668472,1759780253898,-151.0,0.00029692,30]
[389668473,1759780253908,-151.0,0.00029692,30]
[389668474,1759780253917,-187.203997,0.00029692,30]
[389668475,1759780253927,-372.388706,0.00029692,30]
[389668476,1759780253936,-372.388706,0.00029692,30]
[389668477,1759780253945,-372.388706,0.00029692,30]
[389668478,1759780253955,-372.388706,0.00029692,30]
[389668479,1759780253964,-241.644586,0.00029692,30]
[389668480,1759780253975,-241.644586,0.00029692,30]
[389668481,1759780253984,-241.644586,0.00029692,30]
[389668482,1759780253994,-241.644586,0.00029692,30]
[389668483,1759780254003,-151.0,0.00029692,30]
[389668484,1759780254013,-187.28884,0.00029692,30]
[389668485,1759780254022,-187.28884,0.00029692,30]
[389668486,1759780254031,-187.28884,0.00029692,30]
[389668487,1759780254041,-187.28884,0.00029692,30]
[389668488,1759780254050,-151.0,0.00029692,30]
[389668489,1759780254059,-151.0,0.00029692,30]
[389668490,1759780254069,-151.0,0.00029692,30]
[389668491,1759780254079,-151.0,0.00029692,30]
[389668492,1759780254089,-151.0,0.00029692,30]
[389668493,1759780254100,-151.0,0.00029692,30]
[389668494,1759780254110,-151.0,0.00029692,30]
[389668495,1759780254123,-151.0,0.00029692,30]
[389668496,1759780254132,-151.0,0.00029692,14]
[389668497,1759780254143,-151.0,0.00029692,30]
[389668498,1759780254152,-147.63572543,0.00029692,14]
[389668499,1759780254347,-3.36427457,0.00029692,14]
[389668500,1759780254356,-151.0,0.00029692,30]
[389668501,1759780254366,-204.936588,0.00029692,30]
[389668502,1759780254376,-260.415952,0.00029692,30]
[389668503,1759780254385,-151.0,0.00029692,30]
[389668504,1759780254395,-151.0,0.00029692,30]
[389668505,1759780254404,-151.0,0.00029692,30]
[389668506,1759780254414,-151.0,0.00029692,30]
[389668507,1759780254423,-151.0,0.00029692,30]
[389668508,1759780254433,-905.865682,0.00029692,30]
[389668509,1759780254442,-151.0,0.00029692,30]
[389668510,1759780254452,-905.865682,0.00029692,30]
[389668511,1759780254461,-151.0,0.00029692,30]
[389668512,1759780254471,-905.865682,0.00029692,30]
[389668513,1759780254481,-151.0,0.00029692,30]
[389668514,1759780254490,-905.865682,0.00029692,30]
[389668515,1759780254499,-151.0,0.00029692,30]
[389668516,1759780254508,-151.0,0.00029692,30]
[389668517,1759780254518,-151.0,0.00029692,30]
[389668518,1759780254528,-20963.5,0.00029692,7]
[389668519,1759780254538,-20963.5,0.00029692,7]
[389668520,1759780254548,-16294.0986574,0.00029692,7]
[389668521,1759780254559,-295.409636,0.00029692,7]
[389668522,1759780254668,-500.0,0.00029315,7]
[389668523,1759780254678,-22.33993015,0.00029658,30]
[389668524,1759780254689,-128.66006985,0.00029658,30]
[389668525,1759780254699,-151.0,0.00029658,30]
[389668526,1759780254708,-151.0,0.00029658,2]
[389668527,1759780254718,-201.329767,0.00029667,30]
[389668528,1759780254727,-151.0,0.00029667,30]
[389668529,1759780254737,-151.0,0.00029667,2]
[389668530,1759780254747,-4373.9917066,0.00029692,7]
[389668531,1759780254756,-6741.98475735,0.00029692,7]
[389668532,1759780254771,-4179.58773391,0.00029692,7]
[389668533,1759780254784,-360.18999991,0.00029692,7]
[389668534,1759780254796,-4637.54,0.00029692,7]
[389668535,1759780254809,-3013.32399999,0.00029692,7]
[389668536,1759780254824,-2030.87350884,0.00029692,7]
[389668537,1759780254834,-4700.52645093,0.00029692,7]
[389668538,1759780254845,-13428.90078587,0.00029692,7]
[389668539,1759780254857,-1088.9,0.00029692,7]
[389668540,1759780254873,-1745.1727632,0.00029692,7]
[389668541,1759780254883,-151.0,0.00029692,30]
[389668542,1759780254896,-20963.5,0.00029692,7]
[389668543,1759780254905,-20963.5,0.00029692,7]
[389668544,1759780254915,-20963.5,0.00029692,7]
[389668545,1759780254924,-20963.5,0.00029692,7]
[389668546,1759780254933,-12199.0248825,0.00029692,7]
[389668550,1759781364114,-412.10653358,0.00013699,2]
[389668552,1759781432126,-587.89346642,0.00013699,2]
[389668553,1759781432136,-370.68887098,0.00019747,2]
[389668554,1759781432145,-161.66400577,0.0001979,2]
[389668555,1759781432154,-779.75365683,0.00019809,2]
[389668557,1759781432174,-769.3474578,0.00019809,2]
[389668559,1759781432186,-450.89888537,0.00019809,2]
[389668561,1759781432196,-154.647172,0.00019827,2]
[389668562,1759781432205,-2131.16382482,0.00019832,2]
[389668563,1759781432214,-301.2,0.00019841,2]
[389668564,1759781432223,-305.97,0.00019853,2]
[389668565,1759781432232,-718.51399545,0.0001987,2]
[389668566,1759781432243,-281.48600455,0.0001987,2]
[389668567,1759781432252,-150.0,0.0001989,2]
[389668568,1759781432261,-1200.0,0.0001989,2]
[389668569,1759781432270,-69.14119332,0.0001989,2]
[389668570,1759781432454,-236.83880668,0.0001989,2]
[389668571,1759781432463,-224.0469135,0.0001989,2]
[389668572,1759781432474,-76.0730865,0.0001989,2]
[389668573,1759781432483,-305.55,0.00019891,2]
[389668574,1759781432492,-302.93,0.00019893,2]
[389668575,1759781432501,-1000.0,0.00019902,2]
[389668576,1759781432510,-301.88,0.00019906,2]
[389668577,1759781432519,-248.0,0.00019907,2]
[389668578,1759781432528,-300.0,0.00019907,2]
[389668579,1759781432537,-301.4,0.00019908,2]
[389668580,1759781432546,-304.41,0.00019911,2]
[389668581,1759781432555,-304.79,0.00019915,2]
[389668582,1759781432564,-300.92,0.00019919,2]
[389668583,1759781432573,-303.63,0.00019926,2]
[389668584,1759781432582,-300.35,0.00019935,2]
[389668586,1759781432591,-304.52,0.00019947,2]
[389668588,1759781432600,-255.0,0.00019947,2]
[389668591,1759781432609,-301.03,0.00019963,2]
[389668592,1759781432619,-345.87,0.00019987,2]
[389668593,1759781432628,-151.0,0.00019987,2]
[389668595,1759781432637,-151.0,0.00019987,2]
[389668596,1759781432646,-151.0,0.00019987,2]
[389668597,1759781432654,-151.0,0.00019987,2]
[389668598,1759781432664,-151.0,0.00019987,2]
[389668599,1759781432673,-151.0,0.00019987,2]
[389668600,1759781432682,-151.0,0.00019987,2]
[389668601,1759781432691,-151.0,0.00019987,2]
[389668602,1759781432700,-151.0,0.00019987,2]
[389668603,1759781432709,-151.0,0.00019987,2]
[389668604,1759781432719,-151.0,0.00019987,2]
[389668605,1759781432728,-151.0,0.00019987,2]
[389668606,1759781432737,-151.0,0.00019987,2]
[389668607,1759781432747,-151.0,0.00019987,2]
[389668608,1759781432756,-151.0,0.00019987,2]
[389668609,1759781432765,-151.0,0.00019987,2]
[389668610,1759781432774,-151.0,0.00019987,2]
[389668611,1759781432783,-151.0,0.00019987,2]
[389668612,1759781432793,-151.0,0.00019987,2]
[389668613,1759781432802,-500.0,0.00019987,2]
[389668614,1759781432811,-101.30307237,0.00019987,2]
[389668615,1759781432823,-49.69692763,0.00019987,2]
[389668616,1759781432833,-151.0,0.00019987,2]
[389668617,1759781432842,-500.0,0.00019987,2]
[389668618,1759781432851,-151.0,0.00019987,2]
[389668619,1759781432860,-500.0,0.00019987,2]
[389668620,1759781432869,-500.0,0.00019987,2]
[389668621,1759781432878,-151.0,0.00019987,2]
[389668622,1759781432887,-227.74,0.00019987,2]
[389668623,1759781432897,-151.0,0.00019987,2]
[389668624,1759781432906,-151.0,0.00019987,2]
[389668625,1759781432915,-151.0,0.00019987,2]
[389668626,1759781432924,-151.0,0.00019987,2]
[389668627,1759781432934,-151.0,0.00019987,2]
[389668628,1759781432943,-151.0,0.00019987,2]
[389668629,1759781432952,-151.0,0.00019987,2]
[389668630,1759781432961,-151.0,0.00019987,2]
[389668631,1759781432971,-151.0,0.00019987,2]
[389668632,1759781432980,-151.0,0.00019987,2]
[389668633,1759781432989,-151.0,0.00019987,2]
[389668634,1759781432998,-151.0,0.00019987,2]
[389668635,1759781433007,-151.0,0.00019987,2]
[389668636,1759781433016,-151.0,0.00019987,2]
[389668637,1759781433027,-151.0,0.00019987,2]
[389668638,1759781433037,-151.0,0.00019987,2]
[389668639,1759781433047,-151.0,0.00019987,2]
[389668640,1759781433057,-151.0,0.00019987,2]
[389668641,1759781433069,-151.0,0.00019987,2]
[389668642,1759781433078,-154.49405679,0.00019987,2]
[389668643,1759781433087,-8178.74738304,0.00019988,2]
[389668644,1759781433097,-175.3717261,0.0002,2]
[389668645,1759781433105,-150.76,0.0002,2]
[389668646,1759781433115,-525.31,0.0002,2]
[389668647,1759781433128,-151.61,0.0002,2]
[389668648,1759781433141,-518.32,0.0002,2]
[389668649,1759781433158,-523.25,0.0002,2]
[389668650,1759781433168,-534.45,0.0002,2]
[389668651,1759781433178,-517.28,0.0002,2]
[389668652,1759781433188,-152.76,0.0002,2]
[389668653,1759781433198,-151.48,0.0002,2]
[389668654,1759781433210,-530.54,0.0002,2]
[389668655,1759781433220,-152.98,0.0002,2]
[389668656,1759781433229,-152.23,0.00020001,2]
[389668657,1759781433239,-533.15,0.00020001,2]
[389668658,1759781433248,-150.7,0.00020004,2]
[389668659,1759781433257,-522.86,0.00020005,2]
[389668660,1759781433266,-152.4,0.00020015,2]
[389668661,1759781433276,-529.41,0.00020021,2]
[389668662,1759781433286,-152.38,0.00020065,2]
[389668663,1759781433295,-524.31,0.00020075,2]
[389668664,1759781433305,-524.19,0.0002012,2]
[389668665,1759781433314,-514.76,0.00020174,2]
[389668666,1759781433323,-1304.7,0.00020185,2]
[389668667,1759781433332,-1000.0,0.00020187,2]
[389668668,1759781433342,-175.3717261,0.000202,2]
[389668669,1759781433351,-527.63,0.00020221,2]
[389668670,1759781433360,-1286.76,0.00020241,2]
[389668671,1759781433370,-1293.81,0.00020241,2]
[389668672,1759781433380,-1285.57,0.00020241,2]
[389668673,1759781433389,-345.87,0.00020261,2]
[389668674,1759781433399,-175.3717261,0.000204,2]
[389668675,1759781433408,-345.87,0.00020535,2]
[389668676,1759781433419,-1329.65,0.00020611,2]
[389668677,1759781433429,-1282.27,0.00020611,2]
[389668678,1759781433438,-500.0,0.00020697,2]
[389668679,1759781433448,-1327.17,0.00020762,2]
[389668680,1759781433457,-1324.95,0.00020784,2]
[389668681,1759781433467,-1307.69,0.00020784,2]
[389668682,1759781433476,-535.42,0.00020797,2]
[389668683,1759781433486,-345.87,0.00020809,2]
[389668684,1759781433495,-500.69207457,0.00020817,2]
[389668685,1759781433504,-500.0,0.00020817,2]
[389668686,1759781433514,-500.0,0.00020817,2]
[389668687,1759781433523,-500.0,0.00020817,2]
[389668688,1759781433533,-3315.40562106,0.00020959,30]
[389668689,1759781433545,-684.59437894,0.00020959,30]
[389668690,1759781433555,-1981.40562106,0.00020971,2]
[389668691,1759781433566,-605.26815439,0.00020971,2]
[389668692,1759781433577,-164.32622455,0.00020971,2]
[389668693,1759781433587,-666.0,0.00020977,3]
[389668694,1759781433596,-251.52456218,0.00021,2]
[389668695,1759781433605,-500.0,0.00021,2]
[389668696,1759781433614,-500.0,0.00021,2]
[389668697,1759781433624,-515.52,0.00021003,2]
[389668698,1759781433633,-161.66400577,0.00021045,2]
[389668699,1759781433642,-345.89,0.00021083,2]
[389668700,1759781433652,-361.12,0.00021486,2]
[389668701,1759781433662,-187.89266124,0.00021679,2]
[389668702,1759781433684,-232.10733876,0.00021679,2]
[389668703,1759781433694,-26.76427411,0.00021764,2]
[389668704,1759781433709,-1653.23572589,0.00021764,2]
[389668705,1759781433718,-373.08437915,0.00021769,2]
[389668706,1759781433727,-150.0,0.00021769,2]
[389668707,1759781433737,-597.97548396,0.00021769,2]
[389668708,1759781433748,-1402.02451604,0.00021769,2]
[389668709,1759781433758,-352.86,0.00021769,2]